[Event "*** Titled Tuesday Blitz"]
[Site "Chess.com"]
[Date "2020.10.27"]
[Round "6"]
[White "MustafayevFarid2004"]
[Black "Colombiano07"]
[Result "1-0"]
[WhiteElo "2473"]
[BlackElo "2287"]
[TimeControl "180+1"]
[EndTime "11:03:39 PDT"]
[Termination "MustafayevFarid2004 won by resignation"]

1. d4 {[%clk 0:03:00.9]} 1... d5 {[%clk 0:03:00]} 2. c4 {[%clk 0:03:01.1]} 2...
c6 {[%clk 0:02:59.8]} 3. Nf3 {[%clk 0:03:00.8]} 3... Nf6 {[%clk 0:03:00.4]} 4.
g3 {[%clk 0:03:00.5]} 4... Bf5 {[%clk 0:02:57.8]} 5. Bg2 {[%clk 0:03:00.8]} 5...
e6 {[%clk 0:02:58.4]} 6. O-O {[%clk 0:03:00.8]} 6... h6 {[%clk 0:02:58.6]} 7.
Nc3 {[%clk 0:02:57.7]} 7... Nbd7 {[%clk 0:02:53.9]} 8. Qb3 {[%clk 0:02:53.8]}
8... Qb6 {[%clk 0:02:53.6]} 9. c5 {[%clk 0:02:54.1]} 9... Qxb3 {[%clk
0:02:53.6]} 10. axb3 {[%clk 0:02:55]} 10... a6 {[%clk 0:02:54.5]} 11. b4 {[%clk
0:02:54.2]} 11... Rc8 {[%clk 0:02:54.6]} 12. Bf4 {[%clk 0:02:54.1]} 12... Be7
{[%clk 0:02:54.8]} 13. h3 {[%clk 0:02:47.9]} 13... Bd8 {[%clk 0:02:54.6]} 14. g4
{[%clk 0:02:48.1]} 14... Bh7 {[%clk 0:02:54.4]} 15. Nd2 {[%clk 0:02:47.6]} 15...
Bc7 {[%clk 0:02:54.6]} 16. e3 {[%clk 0:02:39.6]} 16... g5 {[%clk 0:02:53.8]} 17.
Bxc7 {[%clk 0:02:39.1]} 17... Rxc7 {[%clk 0:02:53.9]} 18. f4 {[%clk 0:02:39.5]}
18... O-O {[%clk 0:02:51.8]} 19. Nf3 {[%clk 0:02:27.7]} 19... Bd3 {[%clk
0:02:50.2]} 20. Rfd1 {[%clk 0:02:23]} 20... Bc4 {[%clk 0:02:48.6]} 21. fxg5
{[%clk 0:02:13.5]} 21... hxg5 {[%clk 0:02:44.9]} 22. Nxg5 {[%clk 0:02:14]} 22...
Ra8 {[%clk 0:02:44.9]} 23. Ra3 {[%clk 0:02:06.6]} 23... Re8 {[%clk 0:02:34.7]}
24. b3 {[%clk 0:01:57.7]} 24... Bb5 {[%clk 0:02:33.9]} 25. Nxb5 {[%clk
0:01:58.4]} 25... axb5 {[%clk 0:02:34.8]} 26. Rf1 {[%clk 0:01:43.2]} 26... Kg7
{[%clk 0:02:23]} 27. Nf3 {[%clk 0:01:41.5]} 27... e5 {[%clk 0:02:22.9]} 28. Nh4
{[%clk 0:01:42]} 28... exd4 {[%clk 0:02:22.2]} 29. Nf5+ {[%clk 0:01:42.5]} 29...
Kg6 {[%clk 0:02:21.7]} 30. exd4 {[%clk 0:01:42.8]} 30... Re2 {[%clk 0:02:19.3]}
31. Ra8 {[%clk 0:01:41.9]} 31... Re8 {[%clk 0:02:16]} 32. Rfa1 {[%clk
0:01:29.5]} 32... Nf8 {[%clk 0:02:15.9]} 33. Rxe8 {[%clk 0:01:26.5]} 33... Nxe8
{[%clk 0:02:16.8]} 34. Ra8 {[%clk 0:01:26.9]} 1-0

[Event "*** Titled Tuesday Blitz"]
[Site "Chess.com"]
[Date "2020.10.27"]
[Round "6"]
[White "djano"]
[Black "barbara25"]
[Result "1-0"]
[WhiteElo "2464"]
[BlackElo "2265"]
[TimeControl "180+1"]
[EndTime "11:03:39 PDT"]
[Termination "djano won by resignation"]

1. d4 {[%clk 0:03:00.9]} 1... Nf6 {[%clk 0:02:56.8]} 2. Nf3 {[%clk 0:03:00.9]}
2... e6 {[%clk 0:02:54.5]} 3. Bf4 {[%clk 0:02:57.8]} 3... d5 {[%clk 0:02:53]} 4.
e3 {[%clk 0:02:57.1]} 4... Bd6 {[%clk 0:02:48.9]} 5. Bg3 {[%clk 0:02:57.2]} 5...
O-O {[%clk 0:02:48.4]} 6. Nbd2 {[%clk 0:02:55.5]} 6... b6 {[%clk 0:02:48.6]} 7.
Bd3 {[%clk 0:02:54.3]} 7... Ba6 {[%clk 0:02:47.6]} 8. c4 {[%clk 0:02:42.8]} 8...
c5 {[%clk 0:02:46]} 9. dxc5 {[%clk 0:02:34.7]} 9... bxc5 {[%clk 0:02:44.9]} 10.
Qe2 {[%clk 0:02:28.2]} 10... Nc6 {[%clk 0:02:33.6]} 11. cxd5 {[%clk 0:02:08.2]}
11... Bxd3 {[%clk 0:02:32.4]} 12. Qxd3 {[%clk 0:02:09.1]} 12... Nb4 {[%clk
0:02:32.5]} 13. Qb1 {[%clk 0:02:02.8]} 13... exd5 {[%clk 0:02:26.8]} 14. a3
{[%clk 0:01:56.2]} 14... Nc6 {[%clk 0:02:23.6]} 15. O-O {[%clk 0:01:56]} 15...
Bxg3 {[%clk 0:02:21.2]} 16. hxg3 {[%clk 0:01:56.9]} 16... d4 {[%clk 0:02:20.5]}
17. e4 {[%clk 0:01:54]} 17... Re8 {[%clk 0:02:17.9]} 18. Re1 {[%clk 0:01:53.2]}
18... Rc8 {[%clk 0:02:17.6]} 19. Nc4 {[%clk 0:01:47.6]} 19... Ng4 {[%clk
0:02:12.8]} 20. e5 {[%clk 0:01:42.5]} 20... Qd5 {[%clk 0:02:11.7]} 21. Nd6
{[%clk 0:01:36.7]} 21... Ngxe5 {[%clk 0:01:59]} 22. Nxe8 {[%clk 0:01:26.1]}
22... Rxe8 {[%clk 0:01:57.9]} 23. Nxe5 {[%clk 0:01:23]} 23... Ne7 {[%clk
0:01:52.3]} 1-0

[Event "*** Titled Tuesday Blitz"]
[Site "Chess.com"]
[Date "2020.10.27"]
[Round "6"]
[White "ASVZ"]
[Black "Shota_Azaladze"]
[Result "1-0"]
[WhiteElo "2468"]
[BlackElo "2631"]
[TimeControl "180+1"]
[EndTime "11:03:43 PDT"]
[Termination "ASVZ won by resignation"]

1. e4 {[%clk 0:03:00.9]} 1... c6 {[%clk 0:02:59.3]} 2. d4 {[%clk 0:03:00.9]}
2... d5 {[%clk 0:03:00.2]} 3. e5 {[%clk 0:03:01.6]} 3... c5 {[%clk 0:03:00.2]}
4. dxc5 {[%clk 0:02:57.9]} 4... Nc6 {[%clk 0:03:00.1]} 5. Nf3 {[%clk 0:02:56.5]}
5... Bg4 {[%clk 0:02:57.8]} 6. Bb5 {[%clk 0:02:56.3]} 6... e6 {[%clk 0:02:57.5]}
7. Be3 {[%clk 0:02:53.8]} 7... Ne7 {[%clk 0:02:54.3]} 8. c3 {[%clk 0:02:52.2]}
8... Nf5 {[%clk 0:02:53.7]} 9. Qa4 {[%clk 0:02:48.2]} 9... Nxe3 {[%clk
0:02:39.9]} 10. fxe3 {[%clk 0:02:32.3]} 10... Bxf3 {[%clk 0:02:38.8]} 11. Bxc6+
{[%clk 0:02:30.5]} 11... bxc6 {[%clk 0:02:39.7]} 12. Qxc6+ {[%clk 0:02:31.1]}
12... Ke7 {[%clk 0:02:39.4]} 13. Qd6+ {[%clk 0:02:31.4]} 13... Ke8 {[%clk
0:02:37]} 14. Qc6+ {[%clk 0:02:31]} 14... Ke7 {[%clk 0:02:37.2]} 15. gxf3 {[%clk
0:02:28.7]} 15... Rb8 {[%clk 0:02:36.3]} 16. b4 {[%clk 0:02:24.7]} 16... f6
{[%clk 0:02:33.3]} 17. f4 {[%clk 0:02:09.1]} 17... Kf7 {[%clk 0:02:32.3]} 18.
Nd2 {[%clk 0:02:03.9]} 18... a5 {[%clk 0:02:31.3]} 19. a3 {[%clk 0:02:01.1]}
19... axb4 {[%clk 0:02:31.1]} 20. axb4 {[%clk 0:02:01]} 20... Be7 {[%clk
0:02:31]} 21. Ra7 {[%clk 0:01:57.2]} 21... Ra8 {[%clk 0:02:29.7]} 22. Rxa8
{[%clk 0:01:36.1]} 22... Qxa8 {[%clk 0:02:30.6]} 23. Qxa8 {[%clk 0:01:36.1]}
23... Rxa8 {[%clk 0:02:29.7]} 24. Ke2 {[%clk 0:01:30.5]} 24... Ra3 {[%clk
0:02:27.6]} 25. Rc1 {[%clk 0:01:28.4]} 25... fxe5 {[%clk 0:02:23.7]} 26. fxe5
{[%clk 0:01:28.2]} 26... Kg6 {[%clk 0:02:24]} 27. Nf3 {[%clk 0:01:21.8]} 27...
Kf5 {[%clk 0:02:23.4]} 28. Kd3 {[%clk 0:01:21.4]} 28... g5 {[%clk 0:02:11.9]}
29. Nd4+ {[%clk 0:01:13.9]} 29... Kxe5 {[%clk 0:02:11.5]} 30. Nc6+ {[%clk
0:01:14.3]} 30... Kf6 {[%clk 0:02:11.7]} 31. Rf1+ {[%clk 0:01:14.3]} 1-0

[Event "*** Titled Tuesday Blitz"]
[Site "Chess.com"]
[Date "2020.10.27"]
[Round "6"]
[White "PLAYER_2006_M"]
[Black "RobertoJBM"]
[Result "0-1"]
[WhiteElo "2515"]
[BlackElo "2796"]
[TimeControl "180+1"]
[EndTime "11:03:44 PDT"]
[Termination "RobertoJBM won by resignation"]

1. d4 {[%clk 0:03:00.9]} 1... d5 {[%clk 0:02:59.7]} 2. Nc3 {[%clk 0:03:00.9]}
2... Nf6 {[%clk 0:02:58.8]} 3. Bf4 {[%clk 0:03:01.2]} 3... a6 {[%clk 0:02:56.9]}
4. e3 {[%clk 0:02:59.7]} 4... e6 {[%clk 0:02:55.9]} 5. g4 {[%clk 0:02:58.4]}
5... c5 {[%clk 0:02:55.6]} 6. g5 {[%clk 0:02:57.4]} 6... Nfd7 {[%clk 0:02:54.6]}
7. Bg2 {[%clk 0:02:56.1]} 7... Nc6 {[%clk 0:02:53.7]} 8. Nf3 {[%clk 0:02:55]}
8... b5 {[%clk 0:02:42.3]} 9. Ne2 {[%clk 0:02:52.9]} 9... Bb7 {[%clk 0:02:39.9]}
10. O-O {[%clk 0:02:51.4]} 10... Nb6 {[%clk 0:02:37.2]} 11. c3 {[%clk
0:02:50.8]} 11... Bd6 {[%clk 0:02:35.8]} 12. h4 {[%clk 0:02:47.4]} 12... h6
{[%clk 0:02:31]} 13. gxh6 {[%clk 0:02:40.8]} 13... gxh6 {[%clk 0:02:31.2]} 14.
Bxd6 {[%clk 0:02:25.3]} 14... Qxd6 {[%clk 0:02:31.1]} 15. Ng3 {[%clk 0:02:24]}
15... O-O-O {[%clk 0:02:21.1]} 16. dxc5 {[%clk 0:02:15.1]} 16... Qxc5 {[%clk
0:02:22]} 17. Nd4 {[%clk 0:02:15.5]} 17... Kb8 {[%clk 0:02:14.8]} 18. a4 {[%clk
0:02:13.1]} 18... Nxa4 {[%clk 0:02:10.5]} 19. Rxa4 {[%clk 0:02:08.9]} 19... bxa4
{[%clk 0:02:10.4]} 20. Qxa4 {[%clk 0:02:09.6]} 20... Nxd4 {[%clk 0:02:09.9]} 21.
exd4 {[%clk 0:02:01.8]} 21... Qb5 {[%clk 0:02:08.5]} 22. Qa3 {[%clk 0:02:01.1]}
22... Rhg8 {[%clk 0:02:07]} 23. Ra1 {[%clk 0:02:00.1]} 23... Rd7 {[%clk
0:01:57.6]} 24. Bf1 {[%clk 0:01:53.4]} 24... Qb6 {[%clk 0:01:57.6]} 25. b4
{[%clk 0:01:47.1]} 25... f5 {[%clk 0:01:55]} 26. Qc1 {[%clk 0:01:43.5]} 26...
Qd6 {[%clk 0:01:52.2]} 27. Kh2 {[%clk 0:01:40.8]} 27... f4 {[%clk 0:01:51.7]}
28. Ne2 {[%clk 0:01:38.5]} 28... Rg4 {[%clk 0:01:43.5]} 0-1

[Event "*** Titled Tuesday Blitz"]
[Site "Chess.com"]
[Date "2020.10.27"]
[Round "6"]
[White "reniite"]
[Black "LuisFSiles"]
[Result "0-1"]
[WhiteElo "1936"]
[BlackElo "2292"]
[TimeControl "180+1"]
[EndTime "11:03:46 PDT"]
[Termination "LuisFSiles won by resignation"]

1. e4 {[%clk 0:03:00.9]} 1... e5 {[%clk 0:02:58.4]} 2. Nf3 {[%clk 0:03:00.3]}
2... Nc6 {[%clk 0:02:57.9]} 3. Nc3 {[%clk 0:03:00.9]} 3... g6 {[%clk 0:02:57.3]}
4. d4 {[%clk 0:02:59.8]} 4... exd4 {[%clk 0:02:58.2]} 5. Nxd4 {[%clk 0:03:00.7]}
5... Bg7 {[%clk 0:02:58.4]} 6. Nxc6 {[%clk 0:03:00.9]} 6... bxc6 {[%clk
0:02:57.6]} 7. Bd3 {[%clk 0:03:01.8]} 7... Ne7 {[%clk 0:02:49.1]} 8. O-O {[%clk
0:03:00.6]} 8... O-O {[%clk 0:02:49.5]} 9. Bg5 {[%clk 0:02:55.6]} 9... d6 {[%clk
0:02:46.4]} 10. Qf3 {[%clk 0:02:54.3]} 10... Rb8 {[%clk 0:02:40.9]} 11. Rab1
{[%clk 0:02:48]} 11... f6 {[%clk 0:02:23.8]} 12. Be3 {[%clk 0:02:44.3]} 12... c5
{[%clk 0:02:23.1]} 13. Nd5 {[%clk 0:02:40.4]} 13... Nc6 {[%clk 0:02:20.2]} 14.
c4 {[%clk 0:02:32]} 14... f5 {[%clk 0:02:07.9]} 15. exf5 {[%clk 0:02:25.6]}
15... Ne5 {[%clk 0:02:02.5]} 16. Qe2 {[%clk 0:01:57.3]} 16... Nxd3 {[%clk
0:01:57.9]} 17. Qxd3 {[%clk 0:01:49]} 17... Bxf5 {[%clk 0:01:56.5]} 18. Qa3
{[%clk 0:01:49.5]} 18... Bxb1 {[%clk 0:01:49.5]} 19. Rxb1 {[%clk 0:01:49]} 19...
c6 {[%clk 0:01:44.6]} 20. Nf4 {[%clk 0:01:48.6]} 20... Qd7 {[%clk 0:01:36.2]}
21. b3 {[%clk 0:01:45.9]} 21... Rbe8 {[%clk 0:01:32.9]} 22. h3 {[%clk
0:01:43.8]} 22... Bd4 {[%clk 0:01:28.7]} 23. Re1 {[%clk 0:01:40]} 23... Rxf4
{[%clk 0:01:25.4]} 0-1

[Event "*** Titled Tuesday Blitz"]
[Site "Chess.com"]
[Date "2020.10.27"]
[Round "6"]
[White "Shivagami"]
[Black "FMJoseHerrera"]
[Result "0-1"]
[WhiteElo "2275"]
[BlackElo "2559"]
[TimeControl "180+1"]
[EndTime "11:04:10 PDT"]
[Termination "FMJoseHerrera won by resignation"]

1. d4 {[%clk 0:03:00.9]} 1... Nf6 {[%clk 0:02:59.2]} 2. c4 {[%clk 0:03:00.3]}
2... c5 {[%clk 0:02:58.8]} 3. d5 {[%clk 0:03:00]} 3... b5 {[%clk 0:02:59.1]} 4.
Qc2 {[%clk 0:03:00.1]} 4... g6 {[%clk 0:02:58.9]} 5. e4 {[%clk 0:03:00.2]} 5...
Bg7 {[%clk 0:02:58.7]} 6. cxb5 {[%clk 0:03:00.1]} 6... O-O {[%clk 0:02:58]} 7.
Nc3 {[%clk 0:02:59.4]} 7... e6 {[%clk 0:02:55.9]} 8. dxe6 {[%clk 0:02:53.3]}
8... fxe6 {[%clk 0:02:55.1]} 9. Be3 {[%clk 0:02:48]} 9... Qe7 {[%clk 0:02:24.9]}
10. Nf3 {[%clk 0:02:38.8]} 10... d5 {[%clk 0:02:20.3]} 11. exd5 {[%clk
0:02:22.3]} 11... exd5 {[%clk 0:02:21.2]} 12. O-O-O {[%clk 0:02:22.1]} 12... d4
{[%clk 0:02:17.3]} 13. Nxd4 {[%clk 0:02:14.3]} 13... cxd4 {[%clk 0:02:15.2]} 14.
Bxd4 {[%clk 0:02:14.4]} 14... Bf5 {[%clk 0:02:14.6]} 15. Bc4+ {[%clk 0:02:09.4]}
15... Kh8 {[%clk 0:02:13.7]} 16. Qb3 {[%clk 0:02:04.7]} 16... Ng4 {[%clk
0:02:06.5]} 17. f4 {[%clk 0:01:58.4]} 17... Bxd4 {[%clk 0:02:04.4]} 18. Rxd4
{[%clk 0:01:52]} 18... Qe3+ {[%clk 0:02:04.3]} 19. Rd2 {[%clk 0:01:51.2]} 19...
Nd7 {[%clk 0:02:03.7]} 20. h3 {[%clk 0:01:25.2]} 20... Nf2 {[%clk 0:02:00.2]}
21. Rf1 {[%clk 0:01:25]} 21... Nc5 {[%clk 0:01:59.8]} 22. Qa3 {[%clk 0:01:19.6]}
22... Ncd3+ {[%clk 0:01:50.5]} 23. Bxd3 {[%clk 0:01:15.2]} 23... Nxd3+ {[%clk
0:01:51.4]} 24. Kd1 {[%clk 0:01:14.3]} 24... Rad8 {[%clk 0:01:49.3]} 25. Rf3
{[%clk 0:01:08.3]} 25... Qg1+ {[%clk 0:01:42.4]} 0-1

[Event "*** Titled Tuesday Blitz"]
[Site "Chess.com"]
[Date "2020.10.27"]
[Round "6"]
[White "Tenamu"]
[Black "zurzan"]
[Result "0-1"]
[WhiteElo "2389"]
[BlackElo "2058"]
[TimeControl "180+1"]
[EndTime "11:04:25 PDT"]
[Termination "zurzan won by resignation"]

1. d4 {[%clk 0:03:00.9]} 1... d6 {[%clk 0:02:59.4]} 2. Nc3 {[%clk 0:03:01.4]}
2... g6 {[%clk 0:02:58.2]} 3. e4 {[%clk 0:03:01.8]} 3... Bg7 {[%clk 0:02:57.9]}
4. f4 {[%clk 0:03:01.4]} 4... Nf6 {[%clk 0:02:56.8]} 5. Bd3 {[%clk 0:02:57.5]}
5... O-O {[%clk 0:02:56.4]} 6. Nf3 {[%clk 0:02:58.1]} 6... Nc6 {[%clk
0:02:55.8]} 7. d5 {[%clk 0:02:57]} 7... Nb4 {[%clk 0:02:54.9]} 8. Bc4 {[%clk
0:02:56.4]} 8... a6 {[%clk 0:02:52.2]} 9. a3 {[%clk 0:02:54.8]} 9... b5 {[%clk
0:02:52.3]} 10. axb4 {[%clk 0:02:54.7]} 10... bxc4 {[%clk 0:02:52]} 11. O-O
{[%clk 0:02:55.4]} 11... e6 {[%clk 0:02:39.6]} 12. Be3 {[%clk 0:02:40.3]} 12...
Bb7 {[%clk 0:02:38.4]} 13. dxe6 {[%clk 0:02:39.4]} 13... fxe6 {[%clk 0:02:37.8]}
14. Ng5 {[%clk 0:02:38.1]} 14... Qe7 {[%clk 0:02:34.4]} 15. e5 {[%clk
0:02:37.5]} 15... Nd5 {[%clk 0:02:29.3]} 16. Nxd5 {[%clk 0:02:34.4]} 16... exd5
{[%clk 0:02:29.1]} 17. exd6 {[%clk 0:02:20.6]} 17... Qxe3+ {[%clk 0:02:28.2]}
18. Kh1 {[%clk 0:02:19.6]} 18... cxd6 {[%clk 0:02:15.3]} 19. Re1 {[%clk
0:02:19.4]} 19... Qd4 {[%clk 0:01:46.6]} 20. Qg4 {[%clk 0:02:09.9]} 20... Qxf4
{[%clk 0:01:19.5]} 21. Qxf4 {[%clk 0:02:03.3]} 21... Rxf4 {[%clk 0:01:18.8]} 22.
Re7 {[%clk 0:02:04.2]} 22... Raf8 {[%clk 0:01:06.1]} 23. g3 {[%clk 0:01:59.6]}
23... R4f5 {[%clk 0:00:56.1]} 24. Ne6 {[%clk 0:01:52.6]} 24... R5f7 {[%clk
0:00:52.1]} 0-1

[Event "*** Titled Tuesday Blitz"]
[Site "Chess.com"]
[Date "2020.10.27"]
[Round "6"]
[White "Vanina1989"]
[Black "shnitez"]
[Result "1-0"]
[WhiteElo "2639"]
[BlackElo "2439"]
[TimeControl "180+1"]
[EndTime "11:04:43 PDT"]
[Termination "Vanina1989 won by resignation"]

1. d4 {[%clk 0:03:00.9]} 1... Nf6 {[%clk 0:02:59.8]} 2. c4 {[%clk 0:03:00.9]}
2... e6 {[%clk 0:02:59.9]} 3. Nf3 {[%clk 0:03:00.8]} 3... b6 {[%clk 0:02:59.7]}
4. g3 {[%clk 0:03:01.1]} 4... Bb7 {[%clk 0:02:59.9]} 5. Bg2 {[%clk 0:03:01.7]}
5... Be7 {[%clk 0:03:00.3]} 6. O-O {[%clk 0:03:02]} 6... O-O {[%clk 0:03:00.5]}
7. Nc3 {[%clk 0:03:02]} 7... Ne4 {[%clk 0:03:00.7]} 8. Bd2 {[%clk 0:03:02.6]}
8... Bf6 {[%clk 0:02:53.3]} 9. Be1 {[%clk 0:03:02.7]} 9... d6 {[%clk 0:02:48.5]}
10. Qd3 {[%clk 0:03:02.4]} 10... Nxc3 {[%clk 0:02:46.5]} 11. Bxc3 {[%clk
0:03:01.7]} 11... g6 {[%clk 0:02:46.3]} 12. e4 {[%clk 0:03:01.6]} 12... Nd7
{[%clk 0:02:43.5]} 13. Qe3 {[%clk 0:03:01.3]} 13... Qe7 {[%clk 0:02:33.7]} 14.
e5 {[%clk 0:03:00.2]} 14... dxe5 {[%clk 0:02:20.7]} 15. dxe5 {[%clk 0:03:00.3]}
15... Bg7 {[%clk 0:02:19.1]} 16. Rad1 {[%clk 0:02:59.8]} 16... Rad8 {[%clk
0:02:16.5]} 17. Rfe1 {[%clk 0:02:58]} 17... a5 {[%clk 0:02:04.9]} 18. h4 {[%clk
0:02:48.8]} 18... Nc5 {[%clk 0:02:01.5]} 19. Nd4 {[%clk 0:02:43.3]} 19... Bxg2
{[%clk 0:01:38.3]} 20. Kxg2 {[%clk 0:02:43.1]} 20... Qd7 {[%clk 0:01:18]} 21.
Qf3 {[%clk 0:02:42.8]} 21... Qe8 {[%clk 0:00:48.4]} 22. Nc6 {[%clk 0:02:37.9]}
22... Ra8 {[%clk 0:00:34.3]} 23. h5 {[%clk 0:02:26.8]} 23... Na4 {[%clk
0:00:26.3]} 24. Bd4 {[%clk 0:02:24.5]} 24... Nc5 {[%clk 0:00:12.6]} 25. Bxc5
{[%clk 0:02:24]} 25... bxc5 {[%clk 0:00:13.5]} 26. Rh1 {[%clk 0:02:03.6]} 26...
Ra6 {[%clk 0:00:13.2]} 27. Nd8 {[%clk 0:02:03.8]} 27... Ra8 {[%clk 0:00:13.2]}
28. Qxa8 {[%clk 0:02:02.6]} 1-0

[Event "*** Titled Tuesday Blitz"]
[Site "Chess.com"]
[Date "2020.10.27"]
[Round "6"]
[White "Beca95"]
[Black "Ermito2020"]
[Result "1-0"]
[WhiteElo "2913"]
[BlackElo "2650"]
[TimeControl "180+1"]
[EndTime "11:04:58 PDT"]
[Termination "Beca95 won by resignation"]

1. e4 {[%clk 0:03:00.9]} 1... c5 {[%clk 0:02:57.9]} 2. Nc3 {[%clk 0:02:59.9]}
2... Nc6 {[%clk 0:02:54.5]} 3. f4 {[%clk 0:02:59.9]} 3... d6 {[%clk 0:02:51.1]}
4. Bb5 {[%clk 0:02:59.7]} 4... Bd7 {[%clk 0:02:48.4]} 5. Bxc6 {[%clk 0:03:00.2]}
5... Bxc6 {[%clk 0:02:48]} 6. d3 {[%clk 0:03:01.1]} 6... g6 {[%clk 0:02:46.7]}
7. Nf3 {[%clk 0:03:00.6]} 7... Bg7 {[%clk 0:02:47.3]} 8. Bd2 {[%clk 0:03:00.8]}
8... Nf6 {[%clk 0:02:47.1]} 9. O-O {[%clk 0:03:00.8]} 9... O-O {[%clk
0:02:45.2]} 10. Qe1 {[%clk 0:03:00.5]} 10... e6 {[%clk 0:02:38]} 11. b3 {[%clk
0:02:56.7]} 11... d5 {[%clk 0:02:29.9]} 12. e5 {[%clk 0:02:56]} 12... Nd7 {[%clk
0:02:29]} 13. Qg3 {[%clk 0:02:54.4]} 13... f6 {[%clk 0:02:24.8]} 14. Rae1 {[%clk
0:02:51.4]} 14... fxe5 {[%clk 0:02:24.6]} 15. fxe5 {[%clk 0:02:50.1]} 15... Rf5
{[%clk 0:02:00.2]} 16. Ng5 {[%clk 0:02:32.6]} 16... Qe7 {[%clk 0:01:34]} 17.
Rxf5 {[%clk 0:02:17.1]} 17... gxf5 {[%clk 0:01:34.9]} 18. Bf4 {[%clk 0:02:02.8]}
18... Nf8 {[%clk 0:01:30.9]} 19. Nf3 {[%clk 0:01:58.4]} 19... Ng6 {[%clk
0:01:30.4]} 20. Bg5 {[%clk 0:01:58.6]} 20... Qc7 {[%clk 0:01:29]} 21. Ne2 {[%clk
0:01:56.3]} 21... d4 {[%clk 0:01:27.6]} 22. Nf4 {[%clk 0:01:53.5]} 22... Bxf3
{[%clk 0:01:04.9]} 23. Nxe6 {[%clk 0:01:51.5]} 23... Qc6 {[%clk 0:00:47.3]} 24.
Nxg7 {[%clk 0:01:51.2]} 24... Bxg2 {[%clk 0:00:47.3]} 25. Nxf5 {[%clk
0:01:46.6]} 25... Bd5 {[%clk 0:00:43.1]} 26. Bf6 {[%clk 0:01:46.6]} 26... Kf7
{[%clk 0:00:28.5]} 27. Qh3 {[%clk 0:01:45.4]} 27... Be6 {[%clk 0:00:24.3]} 28.
Qxh7+ {[%clk 0:01:43.5]} 28... Ke8 {[%clk 0:00:22.4]} 29. Nd6+ {[%clk
0:01:40.2]} 1-0

[Event "*** Titled Tuesday Blitz"]
[Site "Chess.com"]
[Date "2020.10.27"]
[Round "6"]
[White "AlexeiShirov"]
[Black "gagtemp"]
[Result "1-0"]
[WhiteElo "2802"]
[BlackElo "1970"]
[TimeControl "180+1"]
[EndTime "11:05:02 PDT"]
[Termination "AlexeiShirov won by resignation"]

1. e4 {[%clk 0:03:00.9]} 1... d5 {[%clk 0:02:59.7]} 2. exd5 {[%clk 0:02:59.9]}
2... Qxd5 {[%clk 0:03:00.6]} 3. Nc3 {[%clk 0:02:59.7]} 3... Qd6 {[%clk
0:03:00.4]} 4. d4 {[%clk 0:02:58.5]} 4... Nf6 {[%clk 0:03:00.2]} 5. Nf3 {[%clk
0:02:57.5]} 5... c6 {[%clk 0:02:59.5]} 6. Ne5 {[%clk 0:02:54.2]} 6... Nbd7
{[%clk 0:02:59.3]} 7. f4 {[%clk 0:02:51]} 7... Nb6 {[%clk 0:02:55.8]} 8. g4
{[%clk 0:02:48.8]} 8... Nbd5 {[%clk 0:02:47.2]} 9. Bg2 {[%clk 0:02:39.5]} 9...
g6 {[%clk 0:02:40.6]} 10. Nxd5 {[%clk 0:02:19.3]} 10... cxd5 {[%clk 0:02:28.6]}
11. c4 {[%clk 0:02:19]} 11... Bg7 {[%clk 0:02:04.6]} 12. c5 {[%clk 0:02:04]}
12... Qd8 {[%clk 0:01:59.3]} 13. O-O {[%clk 0:02:01.2]} 13... O-O {[%clk
0:01:58.1]} 14. f5 {[%clk 0:01:55.2]} 14... e6 {[%clk 0:01:40.8]} 15. g5 {[%clk
0:01:53.9]} 15... Ne4 {[%clk 0:01:17.8]} 16. f6 {[%clk 0:01:47.1]} 16... Bh8
{[%clk 0:01:17.6]} 17. Bxe4 {[%clk 0:01:34.9]} 17... dxe4 {[%clk 0:01:16.3]} 18.
Be3 {[%clk 0:01:34.6]} 18... Bd7 {[%clk 0:01:12.4]} 19. h4 {[%clk 0:01:32.1]}
19... h5 {[%clk 0:01:02.1]} 20. Qd2 {[%clk 0:01:24]} 20... Bc6 {[%clk
0:00:57.8]} 21. Nxc6 {[%clk 0:01:19.5]} 21... bxc6 {[%clk 0:00:57]} 22. Bf4
{[%clk 0:01:17.8]} 22... Qd5 {[%clk 0:00:55.7]} 23. Be5 {[%clk 0:01:17.1]} 23...
Rfd8 {[%clk 0:00:48.1]} 24. Qe3 {[%clk 0:01:16.3]} 1-0

[Event "*** Titled Tuesday Blitz"]
[Site "Chess.com"]
[Date "2020.10.27"]
[Round "6"]
[White "Akhayan"]
[Black "Caterpiller35"]
[Result "0-1"]
[WhiteElo "2270"]
[BlackElo "2469"]
[TimeControl "180+1"]
[EndTime "11:05:05 PDT"]
[Termination "Caterpiller35 won by resignation"]

1. d4 {[%clk 0:02:59.3]} 1... Nf6 {[%clk 0:02:59.9]} 2. Nf3 {[%clk 0:02:59]}
2... e6 {[%clk 0:02:59.9]} 3. g3 {[%clk 0:02:59.3]} 3... d5 {[%clk 0:02:59.9]}
4. Bg2 {[%clk 0:02:59.3]} 4... Be7 {[%clk 0:03:00.5]} 5. O-O {[%clk 0:02:57.1]}
5... O-O {[%clk 0:03:01.4]} 6. c4 {[%clk 0:02:52.5]} 6... dxc4 {[%clk
0:03:02.3]} 7. Qc2 {[%clk 0:02:50.4]} 7... b6 {[%clk 0:03:02.3]} 8. Bg5 {[%clk
0:02:44.8]} 8... Nbd7 {[%clk 0:02:56.4]} 9. Ne5 {[%clk 0:02:35.6]} 9... Nxe5
{[%clk 0:02:53.7]} 10. Bxf6 {[%clk 0:02:30]} 10... gxf6 {[%clk 0:02:41.7]} 11.
dxe5 {[%clk 0:02:29.3]} 11... Rb8 {[%clk 0:02:31.3]} 12. Rd1 {[%clk 0:02:21]}
12... Qe8 {[%clk 0:02:31.1]} 13. Qxc4 {[%clk 0:02:13.1]} 13... f5 {[%clk
0:02:20]} 14. Qxc7 {[%clk 0:02:03.3]} 14... Ba6 {[%clk 0:02:19.7]} 15. Bc6
{[%clk 0:01:59.1]} 15... Rc8 {[%clk 0:02:06.6]} 16. Bxe8 {[%clk 0:01:49.4]}
16... Rxc7 {[%clk 0:02:05.8]} 17. Ba4 {[%clk 0:01:43]} 17... Bxe2 {[%clk
0:02:03.6]} 18. Re1 {[%clk 0:01:41.2]} 18... Bd3 {[%clk 0:02:00]} 19. Nc3 {[%clk
0:01:38.7]} 19... Bb4 {[%clk 0:01:59.9]} 20. Rad1 {[%clk 0:01:37.4]} 20... Bxc3
{[%clk 0:01:57.6]} 21. bxc3 {[%clk 0:01:35.6]} 21... Bc4 {[%clk 0:01:53.9]} 22.
Rd2 {[%clk 0:01:29.8]} 22... b5 {[%clk 0:01:50.3]} 23. Bd1 {[%clk 0:01:26.9]}
23... Bd5 {[%clk 0:01:43.1]} 24. Re3 {[%clk 0:01:22.3]} 24... Rfc8 {[%clk
0:01:42]} 25. Rc2 {[%clk 0:01:18.6]} 25... b4 {[%clk 0:01:36.2]} 26. g4 {[%clk
0:01:06]} 26... f4 {[%clk 0:01:28.8]} 27. Rh3 {[%clk 0:01:03.5]} 27... a5 {[%clk
0:01:22.3]} 28. Bf3 {[%clk 0:00:56.5]} 28... Rxc3 {[%clk 0:01:19.6]} 29. Rxc3
{[%clk 0:00:55.1]} 29... Rxc3 {[%clk 0:01:19.5]} 0-1